bitfinex/quotes_SOLUSD_20230111
["timestamp","ask_amount","ask_price","bid_price","bid_amount"]
[1673459335942,0.96,15.533,15.523,48.32]
[1673459336262,0.96,15.532,15.524,17.0]
[1673459337531,0.96,15.532,15.524,37.0]
[1673459339631,0.96,15.532,15.523,48.32]
[1673459341001,0.96,15.532,15.524,17.0]
[1673459341002,0.96,15.531,15.524,17.0]
[1673459341193,0.96,15.532,15.522,48.33]
[1673459341194,0.96,15.532,15.523,20.0]
[1673459341403,0.96,15.532,15.524,17.0]
[1673459341617,0.96,15.533,15.525,20.0]
[1673459341834,0.96,15.534,15.526,17.0]
[1673459342152,0.96,15.533,15.526,17.0]
[1673459342781,20.0,15.535,15.526,17.0]
[1673459343519,20.0,15.535,15.526,65.32]
[1673459343729,20.0,15.535,15.526,17.0]
[1673459344262,20.0,15.535,15.527,20.0]
[1673459344479,20.0,15.539,15.528,17.0]
[1673459344789,20.0,15.539,15.528,65.31]
[1673459344999,20.0,15.539,15.529,20.0]
[1673459345405,20.0,15.539,15.53,17.0]
[1673459346263,0.96,15.538,15.53,17.0]
[1673459346891,0.96,15.538,15.528,48.31]
[1673459347089,0.96,15.537,15.526,48.32]
[1673459347301,0.96,15.536,15.526,48.32]
[1673459347511,0.96,15.535,15.526,48.32]
[1673459347833,0.96,15.534,15.524,48.32]
[1673459348557,14.12,15.53,15.524,48.32]
[1673459348979,14.12,15.53,15.523,68.32]
[1673459350255,14.12,15.53,15.524,17.0]
[1673459351308,14.12,15.53,15.522,68.33]
[1673459351642,14.12,15.53,15.523,17.0]
[1673459355200,14.12,15.53,15.523,65.32]
[1673459355435,14.12,15.53,15.523,17.0]
[1673459356669,20.0,15.535,15.524,48.32]
[1673459356886,20.0,15.535,15.525,37.0]
[1673459357408,20.0,15.535,15.526,48.32]
[1673459357586,20.0,15.535,15.527,20.0]
[1673459357798,20.0,15.535,15.528,17.0]
[1673459358009,20.0,15.535,15.528,65.31]
[1673459358242,20.0,15.539,15.528,65.31]
[1673459358959,20.0,15.539,15.529,20.0]
[1673459359377,20.0,15.539,15.53,17.0]
[1673459359594,20.0,15.539,15.528,48.31]
[1673459359905,20.0,15.539,15.529,17.0]
[1673459360751,1.92,15.538,15.529,17.0]
[1673459363613,14.16,15.54,15.53,48.3]
[1673459363823,14.16,15.54,15.531,17.0]
[1673459364032,14.16,15.54,15.532,0.96]
[1673459364242,14.16,15.54,15.533,0.96]
[1673459364452,14.16,15.54,15.533,20.96]
[1673459364652,14.16,15.54,15.534,65.29]
[1673459365079,14.16,15.54,15.535,20.0]
[1673459365292,48.24,15.549,15.536,17.96]
[1673459365506,70.97,15.55,15.536,67.2]
[1673459366120,70.97,15.55,15.537,20.0]
[1673459366336,70.97,15.55,15.538,18.92]
[1673459366660,20.0,15.549,15.539,20.0]
[1673459366873,20.0,15.549,15.54,17.0]
[1673459367096,20.0,15.549,15.54,65.27]
[1673459370848,0.96,15.548,15.54,65.27]
[1673459371054,0.96,15.548,15.54,17.0]
[1673459371501,0.96,15.548,15.538,48.28]
[1673459374233,0.96,15.548,15.539,20.0]
[1673459374950,70.97,15.55,15.539,20.0]
[1673459375282,14.24,15.55,15.541,20.0]
[1673459375687,14.24,15.55,15.542,48.27]
[1673459375902,14.24,15.55,15.543,20.0]
[1673459376114,48.21,15.559,15.543,20.0]
[1673459376323,48.21,15.559,15.544,48.26]
[1673459376742,48.21,15.559,15.545,20.0]
[1673459376964,188.3137,15.56,15.546,0.96]
[1673459377173,188.3137,15.56,15.546,49.21]
[1673459377368,188.3137,15.56,15.547,20.0]
[1673459377890,188.3137,15.56,15.548,65.25]
[1673459378310,21.92,15.559,15.548,17.0]
[1673459378531,20.0,15.558,15.548,17.0]
[1673459378740,1.92,15.557,15.546,48.25]
[1673459378937,1.92,15.557,15.547,17.0]
[1673459379595,1.92,15.557,15.547,37.0]
[1673459379807,0.96,15.557,15.548,48.25]
[1673459379999,1.92,15.558,15.548,48.25]
[1673459382207,1.92,15.558,15.546,48.25]
[1673459383259,1.92,15.558,15.547,20.0]
[1673459383778,1.92,15.558,15.548,48.25]
[1673459384422,1.92,15.558,15.547,20.0]
[1673459384831,1.92,15.558,15.548,48.25]
[1673459385363,20.0,15.559,15.548,48.25]
[1673459385590,20.0,15.559,15.549,1.92]
[1673459385787,20.0,15.559,15.549,20.96]
[1673459385997,20.0,15.559,15.55,48.24]
[1673459386315,20.0,15.559,15.549,20.0]
[1673459386834,20.0,15.559,15.55,17.0]
[1673459391272,20.0,15.559,15.55,65.24]
[1673459391461,0.96,15.558,15.55,17.0]
[1673459391882,0.96,15.558,15.548,48.25]
[1673459392639,0.96,15.558,15.549,17.0]
[1673459394195,0.96,15.558,15.547,20.0]
[1673459394406,0.96,15.558,15.548,65.25]
[1673459397886,0.96,15.557,15.548,48.25]
[1673459398208,0.96,15.556,15.546,48.25]
[1673459399366,0.96,15.556,15.547,17.0]
[1673459399771,0.96,15.556,15.548,48.25]
[1673459400193,0.96,15.555,15.546,48.25]
[1673459400504,0.96,15.554,15.547,17.0]
[1673459400925,70.64,15.56,15.549,20.0]
[1673459401140,70.64,15.56,15.55,17.0]
[1673459401345,70.64,15.56,15.55,65.24]
[1673459401555,70.64,15.56,15.551,20.0]
[1673459401796,70.64,15.56,15.552,17.0]
[1673459401982,70.64,15.56,15.553,20.0]
[1673459402404,70.64,15.56,15.554,17.0]
[1673459403024,14.16,15.56,15.554,17.0]
[1673459403251,70.68,15.56,15.55,48.24]
[1673459403455,70.68,15.56,15.549,20.0]
[1673459403456,70.58,15.56,15.552,48.23]
[1673459403669,70.58,15.56,15.55,48.24]
[1673459403891,1.92,15.559,15.55,48.24]
[1673459404809,1.92,15.559,15.545,20.0]
[1673459404810,1.92,15.559,15.548,48.25]
[1673459405646,21.92,15.559,15.545,48.26]
[1673459405864,14.12,15.55,15.542,48.27]
[1673459406285,14.12,15.55,15.54,164.1475]
[1673459406710,14.12,15.55,15.541,20.0]
[1673459407130,14.12,15.55,15.542,48.27]
[1673459407337,14.12,15.55,15.543,17.0]
[1673459407873,14.12,15.55,15.543,37.0]
[1673459412940,14.12,15.55,15.544,20.0]
[1673459413358,14.12,15.55,15.544,68.26]
[1673459413904,14.12,15.55,15.544,20.0]
[1673459414106,68.21,15.559,15.545,50.18]
[1673459414315,68.21,15.559,15.546,20.0]
[1673459414846,68.21,15.559,15.548,20.0]
[1673459415161,20.0,15.559,15.548,20.0]
[1673459415789,0.96,15.558,15.548,20.0]
[1673459416003,1.92,15.558,15.548,20.0]
[1673459416826,1.92,15.558,15.549,17.0]
[1673459419668,0.96,15.558,15.549,17.0]
[1673459421666,0.96,15.558,15.549,65.24]
[1673459423691,1.92,15.558,15.549,65.24]
[1673459424016,1.92,15.558,15.549,17.0]
[1673459424232,1.92,15.558,15.547,48.25]
[1673459428758,0.96,15.558,15.547,48.25]
[1673459429801,1.92,15.558,15.547,48.25]
[1673459430427,0.96,15.557,15.547,48.25]
[1673459430965,0.96,15.556,15.547,48.25]
[1673459431994,0.96,15.556,15.546,48.25]
[1673459432626,0.96,15.556,15.542,48.27]
[1673459432837,14.13,15.55,15.544,48.26]
[1673459433046,14.13,15.55,15.542,48.27]
[1673459433273,14.13,15.55,15.543,20.0]
[1673459433789,0.96,15.549,15.543,20.0]
[1673459434125,0.96,15.549,15.542,48.27]
[1673459436636,0.96,15.549,15.541,48.27]
[1673459436829,0.96,15.549,15.542,20.0]
[1673459437038,14.13,15.55,15.542,20.0]
[1673459437476,0.96,15.549,15.542,20.0]
[1673459437900,0.96,15.549,15.543,17.0]
[1673459438402,14.13,15.55,15.543,17.0]
[1673459441803,0.96,15.549,15.543,17.0]
[1673459442100,0.96,15.549,15.542,20.0]
[1673459443996,0.96,15.549,15.543,17.0]
[1673459446302,14.13,15.55,15.543,17.0]
[1673459447780,14.13,15.55,15.543,65.26]
[1673459448837,14.13,15.55,15.543,17.0]
[1673459449257,14.13,15.55,15.542,48.27]
[1673459449578,1.92,15.549,15.54,164.1475]
[1673459450312,1.92,15.549,15.541,20.0]
[1673459452936,1.92,15.549,15.537,68.28]
[1673459453260,21.92,15.549,15.539,48.28]
[1673459453476,21.92,15.549,15.538,48.28]
[1673459455347,21.92,15.549,15.539,17.0]
[1673459458825,21.92,15.549,15.538,17.0]
[1673459461565,70.16,15.549,15.538,17.0]
[1673459463881,69.2,15.549,15.538,17.0]
[1673459464082,14.24,15.55,15.538,65.28]
[1673459464304,14.24,15.55,15.539,21.92]
[1673459464813,14.24,15.55,15.54,65.27]
[1673459465030,14.24,15.55,15.541,21.92]
[1673459465350,14.24,15.55,15.543,20.0]
[1673459465752,14.24,15.55,15.544,48.26]
[1673459465959,14.24,15.55,15.545,17.0]
[1673459466391,14.24,15.55,15.546,48.25]
[1673459466605,20.0,15.558,15.546,48.25]
[1673459466817,20.0,15.558,15.547,17.0]
[1673459467023,20.0,15.557,15.547,17.0]
[1673459467232,20.0,15.557,15.545,20.0]
[1673459467457,20.0,15.557,15.546,17.0]
[1673459467874,1.92,15.556,15.546,17.0]
[1673459469044,1.92,15.556,15.546,65.25]
[1673459470812,0.96,15.556,15.546,17.0]
[1673459471243,0.96,15.556,15.547,20.0]
[1673459471456,0.96,15.556,15.548,17.0]
[1673459472706,21.92,15.557,15.548,17.0]
[1673459473669,1.92,15.557,15.546,48.25]
[1673459473857,1.92,15.557,15.547,17.0]
[1673459474278,1.92,15.557,15.545,20.0]
[1673459474508,1.92,15.557,15.546,48.25]
[1673459474721,1.92,15.557,15.545,20.0]
[1673459474722,21.06496728,15.557,15.545,20.0]
[1673459474911,20.0,15.556,15.546,48.25]
[1673459475123,1.92,15.555,15.546,48.25]
[1673459476493,1.92,15.555,15.547,17.0]
[1673459477235,1.92,15.555,15.545,20.0]
[1673459479524,21.06496728,15.555,15.543,20.0]
[1673459479857,14.1,15.55,15.542,108.0372]
[1673459480062,1.92,15.549,15.542,108.0372]
[1673459480256,1.92,15.549,15.538,48.28]
[1673459480472,1.92,15.549,15.539,20.0]
[1673459480891,1.92,15.549,15.541,20.0]
[1673459484932,1.92,15.549,15.54,48.27]
[1673459485132,21.92,15.549,15.538,48.28]
[1673459485450,41.06496728,15.549,15.538,48.28]
[1673459486402,17.0,15.548,15.537,48.28]
[1673459486714,21.92,15.547,15.536,110.7414]
[1673459486930,41.06496728,15.547,15.536,110.7414]
[1673459487130,39.14496728,15.546,15.536,110.7414]
[1673459487345,1.92,15.545,15.536,110.7414]
[1673459488377,1.92,15.545,15.533,48.29]
[1673459488607,14.1,15.54,15.533,48.29]
[1673459488798,1.92,15.539,15.53,157.2167]
[1673459489548,1.92,15.539,15.531,20.0]
[1673459489964,1.92,15.539,15.532,65.3]
[1673459491645,1.92,15.539,15.532,17.0]
[1673459493351,1.92,15.539,15.532,17.0]
[1673459496374,1.92,15.539,15.532,37.0]
[1673459498075,14.1,15.54,15.532,37.0]
[1673459498277,20.0,15.547,15.533,49.25]
[1673459498478,20.0,15.547,15.534,20.0]
[1673459498810,20.0,15.546,15.534,20.0]
[1673459499001,20.0,15.549,15.535,48.29]
[1673459499737,20.0,15.549,15.536,1.92]
[1673459499959,20.0,15.549,15.536,38.92]
[1673459500279,20.0,15.549,15.537,48.28]
[1673459500474,1.92,15.548,15.538,17.0]
[1673459500895,20.0,15.549,15.539,20.0]
[1673459501118,20.0,15.549,15.539,68.28]
[1673459501314,20.0,15.549,15.539,20.0]
[1673459501648,20.0,15.549,15.54,48.27]
[1673459502366,83.44629584,15.554,15.54,48.27]
[1673459502582,124.2802,15.56,15.541,28.67764]
[1673459502903,124.2802,15.56,15.542,17.0]
[1673459503223,124.2802,15.56,15.543,21.92]
[1673459503427,124.2802,15.56,15.544,17.0]
[1673459503743,124.2802,15.56,15.545,21.92]
[1673459503946,1.92,15.559,15.545,21.92]
[1673459504163,1.92,15.559,15.546,48.25]
[1673459504579,21.92,15.559,15.546,48.25]
[1673459505656,20.0,15.558,15.544,48.26]
[1673459505851,1.92,15.557,15.544,48.26]
[1673459510685,20.0,15.558,15.545,20.96]
[1673459511106,20.0,15.559,15.546,49.21]
[1673459511317,20.0,15.559,15.547,20.96]
[1673459511823,20.0,15.559,15.548,48.25]
[1673459512037,0.96,15.558,15.548,48.25]
[1673459512579,20.0,15.559,15.549,20.96]
[1673459512796,20.0,15.559,15.55,0.96]
[1673459512989,20.0,15.559,15.55,49.2]
[1673459513838,20.0,15.559,15.55,48.24]
[1673459517089,48.19,15.565,15.55,48.24]
[1673459517315,48.19,15.567,15.551,21.92]
[1673459517515,67.33496728,15.567,15.551,21.92]
[1673459517841,20.0,15.566,15.552,48.23]
[1673459518031,20.0,15.566,15.553,21.92]
[1673459518451,20.0,15.566,15.554,48.23]
[1673459518674,20.0,15.566,15.555,20.0]
[1673459518870,20.0,15.566,15.556,1.92]
[1673459519082,20.0,15.567,15.556,50.14]
[1673459519298,20.0,15.567,15.557,20.0]
[1673459519728,20.0,15.567,15.558,48.22]
[1673459522674,1.92,15.566,15.555,20.0]
[1673459522992,0.96,15.565,15.554,48.23]
[1673459523206,14.12,15.56,15.554,48.23]
[1673459523420,14.12,15.56,15.551,48.24]
[1673459523949,14.12,15.56,15.552,20.0]
[1673459524345,14.12,15.56,15.553,17.0]
[1673459525191,14.12,15.56,15.554,20.0]
[1673459528252,14.12,15.56,15.555,17.0]
[1673459537306,68.19,15.567,15.555,17.0]
[1673459537846,20.0,15.567,15.556,1.92]
[1673459538041,20.0,15.567,15.556,21.92]
[1673459538250,20.0,15.567,15.557,48.22]
[1673459538472,20.0,15.567,15.558,21.92]
[1673459539401,20.0,15.567,15.559,17.0]
[1673459543296,14.09,15.57,15.56,21.92]
[1673459543510,14.09,15.57,15.56,70.13]
[1673459543718,14.09,15.57,15.56,21.92]
[1673459548354,14.09,15.57,15.56,20.0]
[1673459549279,49.14,15.569,15.556,68.22]
[1673459549490,20.0,15.568,15.553,68.23]
[1673459549704,1.92,15.567,15.553,180.1162]
[1673459549908,50.11,15.567,15.553,180.1162]
[1673459550120,20.0,15.566,15.553,180.1162]
[1673459550763,20.0,15.566,15.554,18.92]
[1673459551504,20.0,15.566,15.553,180.1162]
[1673459551722,1.92,15.565,15.553,131.8862]
[1673459552120,1.92,15.565,15.553,180.1162]
[1673459553925,1.92,15.565,15.554,17.0]
[1673459554969,20.0,15.566,15.554,17.0]
[1673459558656,20.0,15.566,15.555,21.92]
[1673459559485,20.0,15.566,15.555,20.0]
[1673459561803,1.92,15.565,15.553,180.1162]
[1673459563494,1.92,15.565,15.553,131.8862]
[1673459563705,1.92,15.565,15.553,180.1162]
[1673459564106,14.0,15.56,15.553,160.1162]
[1673459564438,14.0,15.56,15.551,48.24]
[1673459564642,14.0,15.56,15.549,48.24]
[1673459564840,14.0,15.56,15.55,20.0]
[1673459565265,14.0,15.56,15.551,48.24]
[1673459569493,14.13,15.56,15.552,20.0]
[1673459570099,14.1,15.56,15.552,20.0]
[1673459571168,14.1,15.56,15.553,17.0]
[1673459572530,14.1,15.56,15.553,65.23]
[1673459572724,14.1,15.56,15.553,17.0]
[1673459574859,14.1,15.56,15.554,0.96]
[1673459575079,14.1,15.56,15.554,20.96]
[1673459575390,20.0,15.566,15.555,49.19]
[1673459575577,20.0,15.567,15.555,49.19]
[1673459575912,20.0,15.567,15.556,20.0]
[1673459576119,48.19,15.566,15.556,20.0]
[1673459576437,1.92,15.565,15.556,20.0]
[1673459576838,1.92,15.565,15.554,20.0]
[1673459577049,14.13,15.56,15.554,20.0]
[1673459580334,14.13,15.56,15.555,17.0]
[1673459583687,48.19,15.566,15.555,17.0]
[1673459584006,20.0,15.567,15.556,21.92]
[1673459584409,20.0,15.567,15.556,20.0]
[1673459585789,0.96,15.566,15.555,48.23]
[1673459586013,1.92,15.566,15.555,48.23]
[1673459588838,1.92,15.566,15.554,20.0]
[1673459589029,21.92,15.566,15.553,20.0]
[1673459589233,21.92,15.566,15.554,48.23]
[1673459589463,14.11,15.56,15.553,48.23]
[1673459589787,14.11,15.56,15.552,48.23]
[1673459589982,14.11,15.56,15.551,48.24]
[1673459591356,14.11,15.56,15.552,20.0]
[1673459593458,14.11,15.56,15.553,17.0]
[1673459656362,20.0,15.539,15.529,18.82730313]
[1673459657512,20.0,15.539,15.528,48.31]
[1673459657721,1.92,15.538,15.525,68.32]
[1673459657929,50.2,15.538,15.525,20.0]
[1673459658144,20.0,15.537,15.525,20.0]
[1673459658356,111.4131,15.536,15.525,20.0]
[1673459658784,111.4131,15.536,15.524,68.32]
[1673459659926,111.4131,15.536,15.525,0.96]
[1673459660140,111.4131,15.536,15.526,0.96]
[1673459666886,111.4131,15.536,15.527,0.96]
[1673459667414,111.4131,15.536,15.528,0.96]
[1673459669104,111.4131,15.536,15.524,20.0]
[1673459669306,111.4131,15.536,15.525,1.92]
[1673459669947,48.28,15.535,15.525,1.92]
[1673459679829,48.28,15.535,15.524,20.0]
[1673459680862,0.96,15.534,15.524,20.0]
[1673459681279,48.28,15.533,15.524,20.0]
[1673459682877,48.26,15.535,15.524,20.0]
[1673459683100,48.26,15.535,15.525,1.92]
[1673459689628,48.26,15.535,15.524,20.0]
[1673459689818,14.13,15.53,15.523,113.4729]
[1673459691626,14.13,15.53,15.524,20.0]
[1673459693938,48.26,15.535,15.524,20.0]
[1673459696668,14.15,15.53,15.524,20.0]
[1673459700022,14.15,15.53,15.525,1.92]
[1673459700236,48.26,15.535,15.525,1.92]
[1673459702849,159.6931,15.536,15.525,1.92]
[1673459703268,159.6931,15.536,15.526,20.0]
[1673459703269,111.4131,15.536,15.526,20.0]
[1673459703484,111.4131,15.536,15.527,1.92]
[1673459726316,111.4131,15.536,15.528,20.0]
[1673459734303,111.4131,15.536,15.529,0.96]
[1673459739465,111.4131,15.536,15.528,20.0]
[1673459743133,111.4131,15.536,15.526,20.0]
[1673459751866,14.18,15.54,15.527,38.06496728]
[1673459752179,14.18,15.54,15.53,14.05]
[1673459752390,14.18,15.54,15.531,25.68199]
[1673459752600,14.18,15.54,15.532,6.76156]
[1673459752808,48.24,15.549,15.533,1.92]
[1673459753023,48.24,15.549,15.533,96.11608728]
[1673459753220,48.24,15.549,15.533,47.82608728]
[1673459753563,20.0,15.548,15.534,48.29]
[1673459753739,20.0,15.548,15.535,21.92]
[1673459754072,20.0,15.548,15.536,17.0]
[1673459754276,20.0,15.548,15.537,21.92]
[1673459754686,48.25,15.547,15.537,21.92]
[1673459754910,20.0,15.546,15.537,21.92]
[1673459755123,20.0,15.548,15.537,21.92]
[1673459755539,20.0,15.548,15.538,17.0]
[1673459756808,20.0,15.548,15.539,1.92]
[1673459767877,20.0,15.548,15.538,17.0]
[1673459768079,20.0,15.548,15.537,20.0]
[1673459768285,48.25,15.547,15.537,20.0]
[1673459768614,20.0,15.546,15.537,20.0]
[1673459768802,20.96,15.545,15.533,6.76112]
[1673459769012,14.13,15.54,15.531,20.0]
[1673459770192,14.13,15.54,15.532,0.96]
[1673459770404,14.13,15.54,15.533,0.96]
[1673459771453,14.13,15.54,15.532,0.96]
[1673459771648,14.13,15.54,15.531,20.0]
[1673459772068,1.92,15.539,15.528,20.0]
[1673459772301,50.2,15.539,15.527,68.31]
[1673459772484,50.2,15.539,15.528,20.0]
[1673459773744,48.28,15.539,15.529,18.92]
[1673459775846,70.47,15.54,15.529,18.92]
[1673459780080,70.47,15.54,15.53,20.0]
[1673459780261,70.47,15.54,15.531,1.92]
[1673459781860,70.47,15.54,15.531,18.92]
[1673459782258,70.47,15.54,15.531,1.92]
[1673459782590,70.47,15.54,15.53,20.0]
[1673459783431,70.47,15.54,15.528,68.31]
[1673459783650,70.47,15.54,15.529,1.92]
[1673459783838,48.28,15.539,15.529,1.92]
[1673459784382,20.0,15.538,15.525,132.59]
[1673459784578,0.96,15.537,15.524,113.4234]
[1673459784790,14.13,15.53,15.524,113.4234]
[1673459785940,14.13,15.53,15.525,17.0]
[1673459786148,48.29,15.535,15.525,17.0]
[1673459787115,48.29,15.535,15.525,37.0]
[1673459788248,48.29,15.535,15.521,68.33]
[1673459788458,14.09,15.53,15.521,20.0]
[1673459789935,14.09,15.53,15.522,18.92]
[1673459799622,14.09,15.53,15.521,20.0]
[1673459800239,184.20128169,15.55,15.521,20.0]
[1673459800555,19.14496728,15.544,15.523,20.0]
[1673459800981,19.14496728,15.544,15.524,1.92]
[1673459801810,17.96,15.543,15.524,1.92]
[1673459802039,14.13,15.53,15.524,1.92]
[1673459805616,14.13,15.53,15.524,50.24]
[1673459805830,14.13,15.53,15.524,1.92]
[1673459807608,14.13,15.53,15.522,48.33]
[1673459807824,14.13,15.53,15.523,1.92]
[1673459808368,14.13,15.53,15.522,48.33]
[1673459808563,14.13,15.53,15.521,20.0]
[1673459808772,14.13,15.53,15.522,1.92]
[1673459811620,14.13,15.53,15.521,20.0]
[1673459811837,0.96,15.529,15.52,114.5237]
[1673459813835,70.47,15.53,15.52,114.5237]
[1673459814878,0.96,15.529,15.52,114.5237]
[1673459815606,0.96,15.529,15.519,110.5951]
[1673459818979,0.96,15.529,15.52,20.0]
[1673459822549,0.96,15.529,15.519,110.5951]
[1673459823272,0.96,15.529,15.518,48.34]
[1673459823478,20.96,15.529,15.518,48.34]
[1673459823808,20.96,15.529,15.517,48.34]
[1673459825276,20.96,15.529,15.518,20.0]
[1673459825695,20.96,15.529,15.519,48.34]
[1673459826433,14.23,15.53,15.519,48.34]
[1673459826745,14.23,15.53,15.52,21.92]
[1673459826946,14.23,15.53,15.52,136.0756]
[1673459827153,14.23,15.53,15.522,20.0]
[1673459827370,14.23,15.53,15.523,1.92]
[1673459827577,14.23,15.53,15.524,20.0]
[1673459827887,14.06,15.53,15.524,20.0]
[1673459828097,14.06,15.53,15.525,48.32]
[1673459828317,4.616,15.539,15.526,20.0]
[1673459828638,3.929,15.537,15.526,20.0]
[1673459828847,1.92,15.536,15.527,17.0]
[1673459831033,1.92,15.536,15.526,20.0]
[1673459831243,1.92,15.536,15.525,48.32]
[1673459832522,1.92,15.536,15.505,53.76081309]
[1673459832523,24.477,15.536,15.523,48.32]
[1673459832734,70.83,15.53,15.523,48.32]
[1673459833041,21.92,15.529,15.52,48.33]
[1673459833259,21.92,15.529,15.515,20.0]
[1673459833260,41.92,15.529,15.517,48.34]
[1673459833475,41.92,15.529,15.516,48.35]
[1673459834099,21.92,15.529,15.516,48.35]
[1673459835465,23.162,15.528,15.515,68.35]
[1673459835670,21.92,15.527,15.515,68.35]
[1673459836924,1.92,15.527,15.515,68.35]
[1673459844075,21.92,15.527,15.515,68.35]
[1673459852482,21.92,15.527,15.515,48.35]
[1673459853551,21.92,15.527,15.515,68.35]
[1673459857877,21.92,15.527,15.516,20.0]
[1673459858306,21.92,15.527,15.517,48.34]
[1673459861029,21.92,15.527,15.514,115.4248]
[1673459861030,21.92,15.527,15.516,48.35]
[1673459861454,21.92,15.527,15.515,48.35]
[1673459868392,21.92,15.527,15.515,68.35]
[1673459868833,21.92,15.527,15.516,20.0]
[1673459869343,20.0,15.527,15.518,20.0]
[1673459869552,20.0,15.527,15.519,1.92]
[1673459869750,14.26,15.53,15.519,69.40496728]
[1673459869958,14.26,15.53,15.519,50.26]
[1673459870170,14.26,15.53,15.52,17.0]
[1673459870381,14.26,15.53,15.521,21.92]
[1673459870712,14.26,15.53,15.521,70.25]
[1673459871864,14.26,15.53,15.522,17.0]
[1673459872269,14.26,15.53,15.523,48.32]
[1673459872690,14.26,15.53,15.523,20.0]
[1673459872916,14.26,15.53,15.524,48.32]
[1673459875432,14.26,15.53,15.525,20.0]
[1673459875644,45.16273463,15.537,15.525,20.0]
[1673459875856,1.92,15.535,15.525,20.0]
[1673459878700,18.92,15.535,15.525,20.0]
[1673459883321,18.92,15.535,15.523,20.0]
[1673459883537,14.05,15.53,15.523,20.0]
[1673459883743,0.96,15.529,15.523,20.0]
[1673459884688,0.96,15.529,15.522,68.33]
[1673459887411,70.59,15.53,15.522,68.33]
[1673459888769,70.59,15.53,15.523,17.0]
[1673459889317,70.59,15.53,15.524,48.32]
[1673459890891,70.59,15.53,15.523,17.0]